bitfinex/quotes_ETHUSD_20241212
["timestamp","ask_amount","ask_price","bid_price","bid_amount"]
[1734016409808,2.53158,3950.1,3948.9,1.5161]
[1734016410009,2.53164,3950.0,3949.9,0.02209907]
[1734016410233,2.5321,3949.3,3948.9,1.5161]
[1734016411078,2.53228,3949.0,3948.9,1.5161]
[1734016411273,3.23382861,3949.0,3947.3,1.5843]
[1734016411474,2.53241,3948.8,3947.3,1.5843]
[1734016411728,0.57660586,3948.9,3947.3,1.5843]
[1734016411729,2.53274,3948.3,3947.3,1.5843]
[1734016411938,2.5328,3948.2,3947.3,1.5843]
[1734016412217,2.53274,3948.3,3947.3,1.5843]
[1734016412373,2.53282,3948.2,3947.3,1.5843]
[1734016412573,0.253282,3948.1,3947.3,1.5843]
[1734016412980,2.53241,3948.8,3947.3,1.5843]
[1734016413186,3.23382861,3949.6,3947.3,1.5843]
[1734016413187,2.53248,3948.7,3947.3,1.5843]
[1734016413395,0.1280675,3949.4,3947.3,1.5843]
[1734016413772,2.53209,3949.3,3947.3,1.5843]
[1734016413972,2.5325,3948.7,3947.3,1.5843]
[1734016414197,0.25325,3948.6,3947.3,1.5843]
[1734016414404,2.53269,3948.4,3947.3,1.5843]
[1734016414982,2.53255,3948.6,3947.3,1.5843]
[1734016415187,0.49930756,3949.4,3947.7,1.6005]
[1734016415399,2.53293,3948.0,3947.7,1.6005]
[1734016415595,3.23382861,3948.9,3947.7,1.6005]
[1734016415830,2.53299,3947.9,3947.8,0.02759651]
[1734016416136,2.53299,3947.9,3947.7,1.6005]
[1734016416437,2.53247,3948.7,3947.7,1.6005]
[1734016416573,1.91655819,3948.1,3946.3,0.1656626]
[1734016416784,2.53364,3946.9,3946.3,0.1656626]
[1734016416979,2.53353,3947.1,3946.3,0.1656626]
[1734016417205,3.23382861,3947.3,3946.3,0.1656626]
[1734016417418,2.53372,3946.8,3946.3,0.1656626]
[1734016417742,5.76722861,3947.3,3946.3,0.1656626]
[1734016417743,3.23382861,3947.3,3946.3,0.1656626]
[1734016417888,2.53357,3947.0,3946.3,0.1656626]
[1734016418082,0.32338286,3947.2,3946.3,0.1656626]
[1734016418284,2.85682286,3947.2,3946.3,0.1656626]
[1734016418490,2.5337,3946.8,3946.3,0.1656626]
[1734016418919,0.32338286,3947.2,3946.3,0.1656626]
[1734016419104,0.35572115,3947.1,3946.3,0.1656626]
[1734016419787,2.53321,3947.6,3946.4,1.6356]
[1734016420112,3.95009,3948.1,3946.4,1.6356]
[1734016420113,0.51661432,3947.7,3946.4,1.6356]
[1734016420449,5.76638861,3948.6,3946.4,1.6356]
[1734016420450,3.23382861,3948.0,3946.4,1.6356]
[1734016420607,2.5332,3947.6,3946.4,1.6356]
[1734016420808,3.23382861,3948.0,3946.4,1.6356]
[1734016421121,2.53325,3947.5,3946.4,1.6356]
[1734016421289,0.57667386,3947.9,3946.4,1.6356]
[1734016421621,2.53315,3947.7,3946.4,1.6356]
[1734016421921,3.10966386,3947.9,3946.4,1.6356]
[1734016422123,2.53305,3947.8,3946.4,1.6356]
[1734016422324,3.16740525,3947.8,3946.4,1.81572626]
[1734016422482,3.16740525,3947.8,3946.4,1.6356]
[1734016422686,0.63435525,3947.8,3946.4,1.6356]
[1734016422898,2.53342,3947.3,3946.4,1.6356]
[1734016423104,2.5334,3947.3,3946.4,1.6356]
[1734016423328,2.53344,3947.2,3946.4,1.6356]
[1734016423649,0.253344,3947.2,3946.4,1.6356]
[1734016423990,2.786784,3947.2,3946.4,1.6356]
[1734016424746,0.253344,3947.2,3946.4,1.6356]
[1734016425061,3.23382861,3947.4,3946.4,1.6356]
[1734016425446,5.76717861,3947.4,3946.4,1.6356]
[1734016425646,3.23382861,3947.4,3946.4,1.6356]
[1734016425948,3.02934228,3947.2,3946.4,1.6356]
[1734016426169,2.53351,3947.1,3946.4,1.6356]
[1734016426377,0.30293623,3947.0,3946.4,1.6356]
[1734016427141,3.23382861,3947.4,3946.4,1.6356]
[1734016427346,0.25633526,3948.0,3946.3,0.1656626]
[1734016427347,3.23382861,3948.0,3946.7,2.53375]
[1734016427647,2.53303,3947.9,3946.6,1.5295]
[1734016427997,3.23382861,3948.0,3946.6,1.5295]
[1734016427998,2.53326,3947.5,3946.7,0.02297462]
[1734016428192,2.53337,3947.4,3946.7,0.02297462]
[1734016428392,0.253337,3947.3,3946.7,0.02297462]
[1734016428570,2.53359,3947.0,3946.6,1.5295]
[1734016429265,0.253337,3947.3,3946.6,1.5295]
[1734016429266,2.786737,3947.3,3946.6,1.5295]
[1734016429485,0.253337,3947.3,3946.6,1.5295]
[1734016429686,2.53344,3947.2,3946.6,1.5295]
[1734016429887,0.60206056,3947.1,3946.6,1.5295]
[1734016430770,0.60206056,3947.1,3946.7,0.02295784]
[1734016430965,0.253337,3947.3,3946.7,0.02295784]
[1734016431198,0.253337,3947.3,3946.6,1.5295]
[1734016431764,0.253337,3947.3,3946.7,0.02295784]
[1734016431765,2.53344,3947.2,3946.7,0.02295784]
[1734016432081,2.53359,3947.0,3946.3,0.1656626]
[1734016432409,2.5335,3947.1,3946.3,0.1656626]
[1734016432611,0.2786837,3947.0,3946.3,0.1656626]
[1734016433109,0.253337,3947.3,3946.3,0.1656626]
[1734016433110,0.253337,3947.3,3946.4,0.02367265]
[1734016433472,2.53318,3947.6,3946.4,0.02367265]
[1734016433875,0.50272736,3947.7,3946.4,0.02367265]
[1734016434214,0.25622557,3948.6,3946.7,1.6564]
[1734016434413,1.4172,3949.6,3947.0,3.0]
[1734016434628,0.2563319,3949.2,3947.8,1.6564]
[1734016434777,0.2563319,3949.2,3947.9,1.6606]
[1734016435117,0.40223592,3949.5,3947.9,1.6606]
[1734016435280,1.80644434,3949.7,3948.0,1.6606]
[1734016435788,1.55,3949.7,3948.0,1.6606]
[1734016436188,2.53208,3949.4,3948.0,1.6606]
[1734016436387,1.55,3949.7,3948.0,1.6606]
[1734016436587,2.53218,3949.2,3948.0,1.6606]
[1734016436783,2.53229,3949.0,3948.0,1.6606]
[1734016436974,0.253218,3949.1,3948.0,1.6606]
[1734016437177,2.53211,3949.3,3948.0,1.6606]
[1734016438026,2.53214,3949.3,3948.0,1.6606]
[1734016438908,2.53194,3949.6,3948.0,1.6606]
[1734016439367,1.55,3949.7,3948.2,2.53278]
[1734016439485,2.53196,3949.5,3948.2,1.5762]
[1734016439685,2.5321,3949.3,3948.3,0.15762]
[1734016440133,1.55,3949.7,3948.3,0.15762]
[1734016440342,2.53198,3949.5,3948.2,1.5762]
[1734016440626,1.55,3949.7,3948.2,1.5762]
[1734016440938,0.55,3949.5,3948.2,1.5762]
[1734016441097,2.53244,3948.8,3948.2,1.5762]
[1734016441278,2.95489707,3949.4,3948.2,1.5762]
[1734016441640,2.53237,3948.9,3948.2,1.5762]
[1734016441782,2.53215,3949.2,3948.2,1.5762]
[1734016441983,1.55,3949.7,3948.2,1.5762]
[1734016442977,1.55,3949.7,3948.4,1.6569]
[1734016443383,2.5321,3949.3,3948.4,1.6569]
[1734016443617,0.25321,3949.2,3948.4,1.6569]
[1734016443983,1.55,3949.7,3948.4,1.6569]
[1734016444395,2.05197046,3949.7,3948.4,1.6569]
[1734016444591,1.55,3949.7,3948.4,4.18956]
[1734016444817,4.08185,3949.7,3948.4,1.6569]
[1734016445219,2.53197,3949.5,3948.4,1.6569]
[1734016445389,2.940257,3949.4,3948.4,1.6569]
[1734016445586,1.55,3950.2,3949.0,1.5618]
[1734016446520,4.08152,3950.2,3949.0,1.5618]
[1734016446721,1.55,3950.2,3949.0,1.5618]
[1734016446923,2.53159,3950.1,3949.0,1.5618]
[1734016447088,1.55,3950.2,3949.0,1.5618]
[1734016447288,4.08154,3950.2,3949.0,1.76763049]
[1734016447917,1.55,3949.2,3949.0,1.76763049]
[1734016448317,1.55,3949.2,3949.1,4.13102]
[1734016448721,1.55,3949.2,3948.7,0.49650487]
[1734016448896,1.55,3949.2,3948.6,1.5988]
[1734016449097,1.55,3949.2,3948.6,1.75868]
[1734016449407,1.55,3949.2,3948.7,4.13121]
[1734016449610,1.55,3949.2,3948.7,1.5603]
[1734016451000,1.55,3949.2,3948.7,7.04765707]
[1734016451203,1.55,3949.2,3948.8,1.6079]
[1734016451451,1.55,3949.2,3949.1,2.53222]
[1734016452151,7.99e-06,3949.4,3949.3,5.53209]
[1734016452291,1.55,3950.2,3950.1,7.08068]
[1734016452825,1.55,3950.2,3950.1,7.63068]
[1734016452826,9.38e-06,3950.2,3950.1,7.63068]
[1734016453145,1.55,3950.3,3950.2,7.08061]
[1734016453442,1.55,3950.3,3950.2,8.60243289]
[1734016453995,1.55,3950.3,3950.2,6.07092289]
[1734016454289,1.55,3950.3,3950.2,1.5491]
[1734016458624,1.55,3950.3,3949.3,0.50116535]
[1734016458940,1.55,3950.3,3949.4,1.5508]
[1734016460022,1.55,3950.3,3949.8,1.5557]
[1734016460222,1.55,3950.3,3950.0,1.5557]
[1734016462430,1.55,3950.3,3948.9,0.45627971]
[1734016462431,2.53165,3950.0,3949.5,1.6122]
[1734016462730,1.55,3950.3,3949.5,1.6122]
[1734016462905,1.55,3950.3,3948.9,0.45627971]
[1734016462906,2.53209,3949.3,3948.6,1.6122]
[1734016463105,2.53192,3949.6,3948.6,1.6122]
[1734016463416,2.53218,3949.2,3948.6,1.6122]
[1734016463614,1.762592,3949.6,3948.6,1.6122]
[1734016463809,2.5322,3949.2,3948.6,1.6122]
[1734016464011,2.53203,3949.4,3948.6,1.6122]
[1734016464211,1.762592,3949.6,3948.6,1.6122]
[1734016464513,0.4294402,3949.5,3948.6,1.6122]
[1734016464897,2.53228,3949.1,3948.6,1.6122]
[1734016465340,0.4294402,3949.5,3948.6,1.6122]
[1734016465545,0.4294402,3949.5,3947.6,1.5464]
[1734016465546,2.53203,3949.4,3947.6,1.5464]
[1734016465759,2.53235,3948.9,3947.3,1.5464]
[1734016465918,2.53276,3948.3,3947.3,1.5464]
[1734016466116,4.58509707,3949.0,3947.3,1.5464]
[1734016466117,2.5325,3948.7,3947.3,1.5464]
[1734016466346,0.25325,3948.6,3947.3,1.5464]
[1734016466764,2.53294,3948.0,3947.3,1.5464]
[1734016466917,2.53293,3948.0,3947.3,1.5464]
[1734016467254,4.58509707,3949.0,3947.3,1.5464]
[1734016467255,1.6302,3949.0,3947.3,1.5464]
[1734016467461,2.53264,3948.5,3947.3,1.5464]
[1734016467606,2.53267,3948.4,3947.3,1.5464]
[1734016468514,2.53275,3948.3,3947.3,1.5464]
[1734016468949,0.253275,3948.3,3947.3,1.5464]
[1734016469237,2.53316,3947.7,3947.3,1.5464]
[1734016469829,2.53298,3948.0,3947.3,1.5464]
[1734016470540,2.53295,3948.0,3947.3,1.5464]
[1734016470755,0.5047772,3948.8,3947.3,1.5464]
[1734016471038,0.5047772,3948.8,3946.3,0.1656626]
[1734016471039,2.5334,3947.3,3946.4,1.665]
[1734016471248,2.53267,3948.4,3946.8,2.53366]
[1734016471463,1.5477,3948.5,3946.4,1.6223]
[1734016471754,1.5477,3948.5,3946.3,0.1656626]
[1734016471755,1.5477,3948.5,3946.7,2.53375]
[1734016471920,2.53287,3948.1,3946.5,4.15614]
[1734016472101,2.53287,3948.1,3946.3,0.1656626]
[1734016472102,2.53341,3947.3,3946.3,0.1656626]
[1734016472305,2.53324,3947.5,3946.4,1.6223]
[1734016472527,1.5044,3948.0,3946.4,1.6223]
[1734016472733,2.53339,3947.3,3946.4,1.6223]
[1734016472915,1.5044,3948.0,3946.4,1.6223]
[1734016473113,2.53336,3947.4,3946.4,1.6223]
[1734016473534,2.53338,3947.3,3946.4,1.6223]
[1734016474733,3.0497129,3947.8,3946.3,0.1656626]
[1734016475043,2.53322,3947.6,3946.3,0.1656626]
[1734016475215,0.5166629,3947.8,3946.3,0.1656626]
[1734016475216,2.5333,3947.5,3946.3,0.1656626]
[1734016475419,0.30499629,3947.5,3946.3,0.1656626]
[1734016475726,2.53349,3947.2,3946.3,0.1656626]
[1734016475903,0.30499629,3947.5,3946.3,0.1656626]
[1734016476110,2.5335,3947.1,3946.3,0.1656626]
[1734016476306,0.30499629,3947.5,3946.3,0.1656626]
[1734016476507,2.53365,3946.9,3946.3,0.1656626]
[1734016476808,0.28381363,3947.4,3946.3,0.1656626]
[1734016477128,2.53377,3946.7,3946.3,0.1656626]
[1734016478626,1.55,3947.1,3946.3,0.1656626]
[1734016479026,1.5405,3946.9,3946.3,0.1656626]
[1734016479226,2.53381,3946.7,3946.3,0.1656626]
[1734016479842,2.95489707,3946.6,3946.3,0.1656626]
[1734016480042,2.53395,3946.4,3946.3,0.1656626]
[1734016480810,0.51640908,3946.7,3946.3,0.1656626]
[1734016481161,1.55,3947.1,3946.3,0.1656626]
[1734016481324,0.45048971,3947.0,3946.3,0.1656626]
[1734016481853,0.49969354,3946.8,3946.4,1.5427]
[1734016482068,1.55,3947.1,3946.4,4.07665]
[1734016482343,1.55,3947.1,3946.4,1.5427]
[1734016482706,1.55,3947.1,3946.5,0.022524]
[1734016483117,1.55,3947.1,3946.6,2.53382]
[1734016483308,1.55,3947.1,3946.7,0.4099044]
[1734016483530,1.55,3947.1,3946.8,0.02239691]
[1734016484646,1.55,3947.1,3946.4,4.07663]
[1734016484647,1.55,3947.1,3946.4,1.5427]
[1734016485015,1.55,3947.1,3946.5,0.02240091]
[1734016485517,1.55,3947.1,3946.6,0.02238839]
[1734016485722,1.55,3947.1,3946.4,1.5427]
[1734016485951,1.55,3947.1,3946.5,0.02238972]
[1734016486753,1.55,3947.1,3946.6,2.53381]
[1734016487086,1.55,3947.1,3945.1,2.10921293]
[1734016487087,2.53472,3945.2,3945.1,2.10921293]
[1734016487244,0.55,3945.3,3942.7,2.10921293]
[1734016487553,2.53557,3943.9,3942.6,1.6003]
[1734016487852,1.648,3944.8,3942.6,1.77689626]
[1734016487853,0.51708549,3944.3,3942.6,1.77689626]
[1734016488054,2.53569,3943.7,3942.6,1.77689626]
[1734016488671,2.53554,3944.0,3942.6,1.77689626]
[1734016488875,0.51708549,3944.3,3942.6,1.77689626]
[1734016488876,2.53536,3944.2,3942.6,1.77689626]
[1734016489059,2.5358,3943.6,3942.6,1.77689626]
[1734016489389,2.53565,3943.8,3942.7,0.17768963]
[1734016489529,0.51708549,3944.3,3942.7,0.17768963]
[1734016489730,2.53571,3943.7,3942.7,0.17768963]
[1734016489969,2.53536,3944.2,3942.7,0.17768963]
[1734016490471,1.5046,3944.0,3942.6,1.6003]
[1734016490977,2.53569,3943.7,3942.6,1.6003]
[1734016491469,1.5046,3944.0,3942.6,1.6003]
[1734016491678,0.64435618,3944.3,3943.0,2.53609]
[1734016491975,0.12727069,3944.3,3943.0,2.53609]
[1734016492127,0.16950707,3944.2,3943.0,2.53609]
[1734016493566,0.16646014,3944.2,3943.0,2.53609]
[1734016493763,0.16646014,3944.2,3943.1,2.53605]
[1734016493940,4.10273,3944.9,3943.4,2.53587]
[1734016494261,4.10273,3944.9,3943.5,1.5723]
[1734016494479,2.53505,3944.7,3943.5,1.5723]
[1734016494832,0.64222182,3944.8,3943.5,1.5723]
[1734016495032,0.47449318,3944.7,3943.5,1.5723]
[1734016495272,0.26330309,3945.2,3943.5,1.5723]
[1734016495503,0.62084146,3945.8,3944.5,2.53515]
[1734016495734,0.26327024,3945.6,3944.4,1.5723]
[1734016496022,1.5298,3946.0,3944.4,1.5723]
[1734016496332,0.49609526,3946.3,3944.4,1.5723]
[1734016496333,2.53413,3946.2,3944.5,0.76445967]
[1734016496477,2.53413,3946.2,3944.8,2.53497]
[1734016496675,2.53413,3946.2,3944.4,2.07961098]
[1734016496676,0.12555731,3946.2,3944.4,1.5723]
[1734016496973,0.20473279,3946.2,3944.4,1.5723]
[1734016497206,2.53438,3945.8,3944.4,1.5723]
[1734016497382,2.53455,3945.5,3944.4,1.5723]
[1734016497583,0.55763343,3945.7,3944.4,1.5723]
[1734016497882,0.55763343,3945.7,3944.5,2.53516]
[1734016498094,0.55763343,3945.7,3944.4,1.5723]
[1734016498390,2.53427,3945.9,3944.5,2.53517]
[1734016498779,2.53429,3945.9,3944.4,4.10751]
[1734016498979,0.50060706,3946.1,3944.4,1.5723]
[1734016499177,0.07917534,3946.1,3944.8,2.53497]
[1734016499408,2.65968731,3946.2,3944.8,2.53497]
[1734016499609,0.44527383,3946.1,3944.9,1.645]
[1734016499814,2.97941383,3946.1,3944.9,1.645]
[1734016500029,2.53421,3946.0,3944.9,1.645]
[1734016500245,0.44527383,3946.1,3944.9,1.645]
[1734016500449,0.07916787,3946.3,3945.1,2.53478]
[1734016500652,1.5298,3946.4,3944.9,4.17991]
[1734016500845,1.5298,3946.4,3944.9,1.645]
[1734016501050,2.66077724,3946.7,3945.3,2.53463]
[1734016501247,2.66077724,3946.7,3945.3,2.5346]
[1734016501248,2.5338,3946.7,3945.3,2.5346]
[1734016501428,0.51306685,3946.6,3945.3,2.5346]
[1734016501751,0.51306685,3946.6,3944.9,1.645]
[1734016501963,1.80525485,3946.9,3944.9,1.645]
[1734016501964,2.61286136,3946.8,3945.4,2.53459]
[1734016502129,0.07916136,3946.7,3945.5,1.5326]
[1734016502324,0.49534175,3946.8,3945.5,1.5326]
[1734016502325,0.57450311,3946.8,3945.5,1.5326]
[1734016502526,2.53376,3946.7,3945.5,1.5326]
[1734016502727,1.80525485,3946.9,3945.5,4.06708]
[1734016502959,3.1,3947.1,3945.5,1.5326]
[1734016503365,3.1,3947.1,3946.5,1.5165]
[1734016503660,0.07914968,3947.0,3946.5,1.5165]
[1734016503863,3.1,3947.1,3946.5,1.5165]
[1734016505339,3.1,3947.1,3946.7,2.53372]
[1734016505665,3.1,3947.1,3947.0,2.53356]
[1734016505866,3.1,3947.1,3946.7,2.938752]
[1734016506032,3.1,3947.1,3946.8,4.15559]
[1734016506239,3.1,3947.1,3946.8,1.6219]
[1734016506541,3.1,3947.1,3947.0,2.53356]
[1734016506740,3.1,3947.1,3947.0,2.9896082]
[1734016507010,3.1,3947.1,3947.0,4.5517082]
[1734016507496,3.1,3947.1,3947.0,7.5517082]
[1734016507662,1.55,3947.3,3947.2,2.53344]
[1734016507856,1.55,3947.3,3947.0,2.0181482]
[1734016507857,1.55,3947.3,3947.0,0.4560482]
[1734016508258,1.55,3947.3,3946.9,2.53362]
[1734016508494,1.55,3947.3,3946.9,2.53357]
[1734016508693,1.55,3947.3,3946.7,1.44907704]
[1734016508868,1.55,3947.3,3946.5,1.5621]
[1734016509068,2.53376,3946.8,3946.0,1.6197]
[1734016509293,1.6105,3947.1,3946.0,1.6197]
[1734016509508,1.6105,3947.1,3945.4,1.04405504]
[1734016509509,2.53414,3946.2,3945.4,1.6197]
[1734016509791,1.6105,3947.1,3945.4,1.6197]
[1734016509963,0.36619435,3947.0,3945.4,1.83173838]
[1734016510159,2.89976435,3947.0,3945.7,2.53439]
[1734016510359,2.53372,3946.8,3945.4,4.36631838]
[1734016510595,0.36619435,3947.0,3945.1,1.04405504]
[1734016510899,0.36619435,3947.0,3944.5,1.04405504]
[1734016510900,4.04457,3945.8,3944.5,1.04405504]
[1734016511121,2.53422,3946.0,3944.6,2.53511]
[1734016511275,2.53436,3945.8,3944.6,2.53511]
[1734016511477,2.53436,3945.8,3944.7,0.5180465]
[1734016511684,2.02856093,3946.3,3944.7,0.5180465]
[1734016512074,2.5342,3946.1,3944.7,0.5180465]
[1734016512468,2.5342,3946.1,3944.8,2.53495]
[1734016512708,2.02856093,3946.3,3944.9,2.53487]
[1734016512922,2.99035709,3946.2,3944.9,2.53487]
[1734016513121,0.45625709,3946.2,3944.7,0.5180465]
[1734016513414,2.53396,3946.4,3945.0,2.53482]
[1734016513718,0.51681942,3946.6,3944.8,1.6353]
[1734016513719,2.53411,3946.2,3944.8,4.17028]
[1734016514002,2.53415,3946.1,3944.9,2.53491]
[1734016514293,2.534,3946.4,3945.0,2.53484]
[1734016514581,2.53434,3945.8,3944.8,1.6353]
[1734016514851,2.53447,3945.6,3944.8,1.6353]
[1734016515057,2.53434,3945.8,3944.8,1.6353]
[1734016515264,0.30508194,3946.3,3944.8,1.6353]
[1734016515443,0.78052044,3946.6,3944.8,1.6353]
[1734016515617,2.53447,3945.6,3944.8,1.6353]
[1734016516020,2.5341,3946.2,3945.0,2.53484]
[1734016516252,2.53423,3946.0,3944.8,1.6353]
[1734016516579,0.78052044,3946.6,3944.6,0.51504602]
[1734016516754,0.78052044,3946.6,3944.3,1.04405504]
[1734016516755,2.53486,3945.0,3944.3,1.5193]
[1734016516961,2.53498,3944.8,3944.3,1.5193]
[1734016517255,2.53466,3945.3,3943.6,1.04405504]
[1734016517471,2.53532,3944.3,3943.5,1.5193]
[1734016517652,2.53499,3944.8,3943.1,1.04405504]
[1734016517819,1.5477,3944.4,3943.0,1.5193]
[1734016518238,2.53569,3943.7,3943.0,1.5193]
[1734016518653,1.5477,3944.4,3942.5,1.6349]
[1734016518654,2.53544,3944.1,3942.5,1.6349]
[1734016518972,2.53577,3943.6,3942.5,1.6349]
[1734016519171,1.5477,3944.4,3942.6,0.43370726]
[1734016519172,2.05007888,3944.4,3942.6,0.43370726]
[1734016519374,2.53549,3944.1,3942.6,0.43370726]
[1734016519544,2.53551,3944.0,3942.8,2.53624]
[1734016519750,2.05007888,3944.4,3942.6,0.43370726]
[1734016519948,3.27257596,3943.8,3942.5,1.6349]
[1734016520260,2.53624,3942.9,3942.3,0.1656626]
[1734016520437,1.6447,3943.3,3942.3,0.1656626]
[1734016520633,2.53651,3942.5,3942.3,0.1656626]
[1734016520844,1.6447,3943.3,3942.3,0.1656626]
[1734016521050,0.4999138,3942.6,3942.3,0.1656626]
[1734016521387,2.53648,3942.5,3942.3,0.1656626]
[1734016522039,2.5365,3942.5,3942.3,0.1656626]
[1734016522177,0.4999138,3942.6,3942.3,0.1656626]
[1734016523506,3.0363138,3942.6,3942.3,0.1656626]
[1734016523655,0.30363138,3942.5,3942.3,0.1656626]
[1734016523851,2.84011138,3942.5,3942.3,0.1656626]
[1734016524374,1.6447,3942.4,3942.3,0.1656626]
[1734016526257,2.1947,3942.4,3942.3,0.1656626]
[1734016526987,1.6447,3942.4,3942.3,0.1656626]
[1734016527192,2.36644338,3942.4,3942.3,0.1656626]
[1734016527617,0.4999138,3942.6,3942.3,0.1656626]
[1734016528460,3.0363238,3942.6,3942.3,0.1656626]
[1734016529168,0.4999138,3942.6,3942.3,0.1656626]
[1734016529911,2.53646,3942.5,3942.3,0.1656626]
[1734016530979,2.2055,3942.4,3942.3,0.1656626]
[1734016531180,2.98332238,3942.4,3942.3,0.1656626]
[1734016531580,5.51984238,3942.4,3942.3,0.1656626]
[1734016532026,4.62169,3942.3,3942.2,1e-05]
[1734016532509,4.88415538,3942.3,3942.2,1e-05]
[1734016534017,0.55,3941.1,3939.5,1.663]
[1734016534227,2.53785,3940.4,3939.5,1.663]
[1734016534526,2.53788,3940.3,3939.5,1.663]
[1734016534683,2.53768,3940.7,3939.5,1.663]
[1734016534883,2.53756,3940.8,3939.5,1.663]
[1734016535217,0.51287773,3940.7,3939.5,1.663]
[1734016535712,2.53771,3940.6,3939.5,1.663]
[1734016535918,2.5379,3940.3,3939.5,1.663]
[1734016536118,2.53783,3940.4,3939.5,1.663]
[1734016536288,0.30505877,3940.5,3939.5,1.663]
[1734016536811,2.53787,3940.4,3939.5,1.663]
[1734016537133,0.26250486,3940.6,3939.5,1.663]
[1734016537332,0.26250486,3940.6,3939.6,0.02242313]
[1734016537536,2.53783,3940.4,3939.5,1.663]
[1734016537735,0.26250486,3940.6,3939.5,1.663]
[1734016537938,2.80024486,3940.6,3939.6,0.02637325]
[1734016538098,0.33131226,3940.5,3939.5,1.663]
[1734016538444,3.31307286,3940.6,3939.5,1.663]
[1734016538945,2.53787,3940.3,3939.5,1.663]
[1734016539232,2.53787,3940.3,3939.6,0.02646867]
[1734016539633,3.31310286,3940.6,3939.5,1.663]
[1734016539847,0.26250486,3940.6,3939.7,0.02646172]
[1734016540022,0.26250486,3940.6,3939.6,2.56478306]
[1734016540202,0.26250486,3940.6,3939.5,1.663]
[1734016540407,1.58069343,3945.6,3939.5,1.663]
[1734016540408,2.29852238,3942.4,3940.0,1.6565]
[1734016540740,0.26257723,3941.4,3941.3,4.19373]
[1734016541111,0.26257723,3941.4,3941.3,4.22023637]
[1734016541316,0.26257723,3941.4,3941.3,1.68300637]
[1734016541513,0.26257723,3941.4,3941.3,4.22023637]
[1734016542622,0.51483982,3942.8,3941.9,2.53684]
[1734016542936,2.5367,3942.2,3941.3,1.68300637]
[1734016543241,2.5367,3942.2,3940.1,0.12898904]
[1734016543242,2.5372,3941.4,3940.2,1.6483]
[1734016543739,1.5462,3941.8,3939.5,1.5689]
[1734016544038,2.53737,3941.1,3939.7,2.5382]
[1734016544214,0.253737,3941.0,3939.5,1.5689]
[1734016544424,2.53716,3941.4,3939.8,2.53818]
[1734016544651,2.53716,3941.4,3939.5,1.5689]
[1734016544652,0.50448822,3941.1,3939.5,1.5689]
[1734016545034,1.5882,3941.0,3939.0,0.005]
[1734016545432,1.5882,3941.0,3939.2,1.5846]
[1734016545433,4.12562,3941.0,3939.2,1.5846]
[1734016545626,2.5377,3940.6,3939.3,2.5385]
[1734016545840,4.12562,3941.0,3939.2,1.5846]
[1734016545841,0.25377,3940.5,3939.2,1.5846]
[1734016546144,0.232028,3940.9,3939.7,2.53825]
[1734016546340,0.51647024,3941.2,3939.3,2.53852]
[1734016546534,2.53738,3941.1,3939.8,2.53816]
[1734016546744,2.53738,3941.1,3939.2,1.5846]
[1734016547062,0.26254746,3941.6,3940.5,1.6172]
[1734016547367,0.49496787,3941.6,3940.5,1.6172]
[1734016547656,0.50288026,3941.8,3940.8,2.53753]
[1734016547858,0.23270017,3941.9,3941.1,2.53735]
[1734016548043,0.23270017,3941.9,3940.6,2.53768]
[1734016548044,0.23270017,3942.1,3940.5,1.6172]
[1734016548243,0.23270017,3942.1,3939.9,3.0]
[1734016548244,1.6236,3942.6,3941.4,2.53716]
[1734016548442,1.6236,3942.6,3941.1,2.53733]
[1734016548641,1.6236,3942.6,3941.0,1.5008]
[1734016548642,2.53659,3942.3,3941.0,1.5008]
[1734016548880,4.16005,3942.6,3941.0,1.5008]
[1734016549170,0.49441187,3942.5,3941.3,2.53721]
[1734016549321,0.50423043,3942.5,3941.4,2.53715]
[1734016549519,0.50423043,3942.5,3941.1,2.53732]
[1734016549829,1.6236,3942.6,3941.1,2.53732]
[1734016549830,2.53658,3942.4,3941.1,2.53732]
[1734016550029,2.13444155,3942.6,3941.0,1.5008]
[1734016550225,0.51084155,3942.6,3941.0,1.5008]
[1734016550425,0.51084155,3942.6,3941.4,2.53715]
[1734016550657,0.51084155,3942.6,3941.0,1.5008]
[1734016550658,0.51084155,3942.6,3941.1,2.53731]
[1734016550827,0.51084155,3942.6,3941.3,2.53722]
[1734016551022,2.53647,3942.5,3941.3,2.53722]
[1734016551227,0.51084155,3942.6,3941.4,2.53714]
[1734016551638,2.53647,3942.5,3941.2,0.403811]
[1734016551955,0.51084155,3942.6,3941.2,0.403811]
[1734016552165,0.51084155,3942.6,3941.5,2.53709]
[1734016552663,0.51084155,3942.6,3941.3,0.1904611]
[1734016552829,0.51084155,3942.6,3941.5,2.53708]
[1734016553027,2.11494155,3942.6,3941.0,1.5008]
[1734016553267,2.53648,3942.5,3941.0,1.5008]
[1734016553464,2.53675,3942.1,3941.0,1.5008]
[1734016553628,0.46514216,3942.4,3941.0,1.5008]
[1734016554028,0.46514216,3942.4,3940.5,1.5337]
[1734016554425,0.46514216,3942.4,3941.0,2.53741]
[1734016554426,2.53665,3942.3,3941.0,2.53741]
[1734016554850,0.46514216,3942.4,3940.5,1.5337]
[1734016555063,0.2625788,3942.8,3941.1,2.53734]
[1734016555064,0.50426985,3942.7,3941.1,2.53734]
[1734016555265,0.50426985,3942.7,3940.9,4.13889]
[1734016555266,0.50426985,3942.7,3941.2,2.53729]
[1734016555441,0.2625788,3942.8,3941.2,2.53729]
[1734016555442,0.2625788,3942.8,3941.6,2.53699]
[1734016556132,0.76030694,3942.8,3941.1,1.5878]
[1734016556337,4.181,3943.1,3941.1,1.5878]
[1734016556338,0.12628297,3943.4,3941.5,1.63]
[1734016556674,1.5649,3943.6,3941.7,1.63]
[1734016557368,1.5649,3943.6,3942.7,2.53628]